[Event "Titled Tuesday Blitz January 17 Early 2023"]
[White "Harsh Suresh"]
[Black "Skatchkov, Valery"]
[WhiteFideId "45018464"]
[BlackFideId "24195812"]
[WhiteElo "2298"]
[BlackElo "2167"]
[Result "1-0"]
[Round "07"]
[TimeControl "180+2"]
[Date "2023.01.17"]
[WhiteClock "0:00:05"]
[BlackClock "0:01:27"]

1. e4 {[%clk 0:03:00]}  e5 {[%clk 0:03:00]} 2. Nf3 {[%clk 0:03:00]}  d5 {[%clk 0:03:00]} 3. d3 {[%clk 0:02:46]}  dxe4 {[%clk 0:02:55]} 4. dxe4 {[%clk 0:02:47]}  Qxd1+ {[%clk 0:02:55]} 5. Kxd1 {[%clk 0:02:48]}  Nc6 {[%clk 0:02:55]} 6. c3 {[%clk 0:02:39]}  f5 {[%clk 0:02:55]} 7. Bb5 {[%clk 0:02:23]}  Bd7 {[%clk 0:02:49]} 8. exf5 {[%clk 0:02:01]}  O-O-O {[%clk 0:02:46]} 9. Ke2 {[%clk 0:01:51]}  e4 {[%clk 0:02:41]} 10. Bxc6 {[%clk 0:01:46]}  exf3+ {[%clk 0:02:41]} 11. Bxf3 {[%clk 0:01:47]}  Bb5+ {[%clk 0:02:40]} 12. Ke1 {[%clk 0:01:43]}  Ne7 {[%clk 0:02:26]} 13. g4 {[%clk 0:01:39]}  Nc6 {[%clk 0:02:22]} 14. Bf4 {[%clk 0:01:20]}  Bc5 {[%clk 0:02:19]} 15. Nd2 {[%clk 0:01:11]}  Rhe8+ {[%clk 0:02:20]} 16. Kd1 {[%clk 0:00:55]}  Bxf2 {[%clk 0:02:20]} 17. a4 {[%clk 0:00:39]}  Bd3 {[%clk 0:02:17]} 18. b4 {[%clk 0:00:32]}  Ne5 {[%clk 0:02:15]} 19. Bxe5 {[%clk 0:00:28]}  Rxe5 {[%clk 0:02:15]} 20. Kc1 {[%clk 0:00:25]}  Be3 {[%clk 0:02:13]} 21. Rd1 {[%clk 0:00:25]}  g6 {[%clk 0:02:08]} 22. Kb2 {[%clk 0:00:20]}  gxf5 {[%clk 0:02:03]} 23. gxf5 {[%clk 0:00:21]}  Rxf5 {[%clk 0:01:59]} 24. Bg4 {[%clk 0:00:21]}  Rf8 {[%clk 0:01:47]} 25. Nf1 {[%clk 0:00:17]}  Be2 {[%clk 0:01:38]} 26. Bxf5+ {[%clk 0:00:09]}  Rxf5 {[%clk 0:01:36]} 27. Nxe3 {[%clk 0:00:10]}  Rf3 {[%clk 0:01:35]} 28. Nc2 {[%clk 0:00:07]}  Bxd1 {[%clk 0:01:35]} 29. Rxd1 {[%clk 0:00:08]}  Rf2 {[%clk 0:01:34]} 30. Rh1 {[%clk 0:00:07]}  c6 {[%clk 0:01:34]} 31. h4 {[%clk 0:00:07]}  Kd7 {[%clk 0:01:34]} 32. Kb3 {[%clk 0:00:07]}  Ke6 {[%clk 0:01:34]} 33. Rg1 {[%clk 0:00:08]}  Rh2 {[%clk 0:01:33]} 34. Nd4+ {[%clk 0:00:07]}  Kf6 {[%clk 0:01:30]} 35. Rf1+ {[%clk 0:00:06]}  Ke7 {[%clk 0:01:26]} 36. Rf4 {[%clk 0:00:04]}  b6 {[%clk 0:01:25]} 37. Rg4 {[%clk 0:00:04]}  Rh3 {[%clk 0:01:26]} 38. Rg7+ {[%clk 0:00:04]}  Kd6 {[%clk 0:01:27]} 39. Rxh7 {[%clk 0:00:04]}  c5 {[%clk 0:01:27]} 40. Nb5+ {[%clk 0:00:04]}  Kd5 {[%clk 0:01:27]} 41. Rh5+ {[%clk 0:00:04]}  Ke4 {[%clk 0:01:27]} 42. Nxa7 {[%clk 0:00:04]}  Kd3 {[%clk 0:01:26]} 43. bxc5 {[%clk 0:00:04]}  bxc5 {[%clk 0:01:26]} 44. Rd5+ {[%clk 0:00:04]}  Ke4 {[%clk 0:01:26]} 45. Rxc5 {[%clk 0:00:05]}  Ke3 {[%clk 0:01:26]} 46. Rc4 {[%clk 0:00:05]}  Rh1 {[%clk 0:01:26]} 47. Nb5 {[%clk 0:00:05]}  Rb1+ {[%clk 0:01:27]} 48. Ka2 {[%clk 0:00:05]}  Rh1 {[%clk 0:01:26]} 49. Rd4 {[%clk 0:00:04]}  Rh2+ {[%clk 0:01:26]} 50. Kb3 {[%clk 0:00:05]}  Rh1 {[%clk 0:01:26]} 51. Na3 {[%clk 0:00:05]}  Rb1+ {[%clk 0:01:27]} 52. Nxb1 {[%clk 0:00:05]} 1-0


[Site "https://www.chess.com"]

[Event "Titled Tuesday Blitz January 17 Early 2023"]
[White "Seo, Jung Min"]
[Black "Trent, Lawrence"]
[WhiteFideId "1734687"]
[BlackFideId "408638"]
[WhiteElo "2494"]
[BlackElo "2403"]
[Result "1-0"]
[Round "07"]
[TimeControl "180+2"]
[Date "2023.01.17"]
[WhiteClock "0:00:39"]
[BlackClock "0:00:03"]

1. e4 {[%clk 0:03:00]}  c5 {[%clk 0:02:55]} 2. Nf3 {[%clk 0:03:00]}  d6 {[%clk 0:02:55]} 3. d4 {[%clk 0:03:00]}  cxd4 {[%clk 0:02:55]} 4. Nxd4 {[%clk 0:03:00]}  Nf6 {[%clk 0:02:56]} 5. Nc3 {[%clk 0:03:01]}  g6 {[%clk 0:02:56]} 6. Be3 {[%clk 0:03:00]}  a6 {[%clk 0:02:57]} 7. f3 {[%clk 0:02:58]}  b5 {[%clk 0:02:57]} 8. Qd2 {[%clk 0:02:58]}  Bg7 {[%clk 0:02:56]} 9. g4 {[%clk 0:02:58]}  O-O {[%clk 0:02:56]} 10. O-O-O {[%clk 0:02:54]}  Bb7 {[%clk 0:02:55]} 11. h4 {[%clk 0:02:53]}  h5 {[%clk 0:02:55]} 12. g5 {[%clk 0:02:44]}  Nfd7 {[%clk 0:02:55]} 13. Kb1 {[%clk 0:02:44]}  Nc5 {[%clk 0:02:55]} 14. Bd3 {[%clk 0:02:41]}  Nbd7 {[%clk 0:02:55]} 15. Rhe1 {[%clk 0:02:37]}  Ne5 {[%clk 0:02:55]} 16. f4 {[%clk 0:02:34]}  Nc4 {[%clk 0:02:54]} 17. Bxc4 {[%clk 0:02:34]}  bxc4 {[%clk 0:02:55]} 18. Bf2 {[%clk 0:02:30]}  Qc8 {[%clk 0:02:47]} 19. Qe2 {[%clk 0:02:29]}  Rb8 {[%clk 0:02:27]} 20. Qxc4 {[%clk 0:02:24]}  Qh3 {[%clk 0:02:25]} 21. Ka1 {[%clk 0:02:18]}  Rfc8 {[%clk 0:02:23]} 22. Qe2 {[%clk 0:02:15]}  Ba8 {[%clk 0:02:17]} 23. Rh1 {[%clk 0:02:07]}  Qd7 {[%clk 0:02:12]} 24. Rhe1 {[%clk 0:02:04]}  Qb7 {[%clk 0:02:11]} 25. Rb1 {[%clk 0:02:01]}  Qb4 {[%clk 0:02:08]} 26. Red1 {[%clk 0:01:50]}  Ne6 {[%clk 0:01:31]} 27. Qd2 {[%clk 0:01:49]}  Rc4 {[%clk 0:01:07]} 28. Nce2 {[%clk 0:01:21]}  Bxe4 {[%clk 0:00:55]} 29. Qxb4 {[%clk 0:01:13]}  Rcxb4 {[%clk 0:00:56]} 30. Rd2 {[%clk 0:01:10]}  Nc5 {[%clk 0:00:50]} 31. Nc3 {[%clk 0:01:06]}  Ba8 {[%clk 0:00:46]} 32. Be3 {[%clk 0:01:05]}  Rc4 {[%clk 0:00:37]} 33. Re1 {[%clk 0:00:59]}  Ne6 {[%clk 0:00:23]} 34. Nxe6 {[%clk 0:00:55]}  fxe6 {[%clk 0:00:24]} 35. Nd1 {[%clk 0:00:54]}  Be4 {[%clk 0:00:22]} 36. c3 {[%clk 0:00:46]}  e5 {[%clk 0:00:19]} 37. fxe5 {[%clk 0:00:43]}  Bxe5 {[%clk 0:00:19]} 38. Bd4 {[%clk 0:00:43]}  Bxd4 {[%clk 0:00:15]} 39. Rxe4 {[%clk 0:00:40]}  e6 {[%clk 0:00:03]} 40. Rexd4 {[%clk 0:00:39]} 1-0


[Site "https://www.chess.com"]

[Event "Titled Tuesday Blitz January 17 Early 2023"]
[White "Saravana, Krishnan P."]
[Black "Urazayev, Arystanbek"]
[WhiteFideId "5018382"]
[BlackFideId "13709810"]
[WhiteElo "2284"]
[BlackElo "2460"]
[Result "0-1"]
[Round "07"]
[TimeControl "180+2"]
[Date "2023.01.17"]
[WhiteClock "0:00:17"]
[BlackClock "0:01:34"]

1. e4 {[%clk 0:02:50]}  c5 {[%clk 0:02:59]} 2. Nf3 {[%clk 0:02:49]}  e6 {[%clk 0:03:00]} 3. c3 {[%clk 0:02:48]}  d5 {[%clk 0:02:59]} 4. exd5 {[%clk 0:02:48]}  exd5 {[%clk 0:03:00]} 5. d4 {[%clk 0:02:48]}  Nc6 {[%clk 0:03:01]} 6. Bb5 {[%clk 0:02:47]}  Bd6 {[%clk 0:03:01]} 7. O-O {[%clk 0:02:45]}  Ne7 {[%clk 0:03:01]} 8. dxc5 {[%clk 0:02:45]}  Bxc5 {[%clk 0:03:02]} 9. Nbd2 {[%clk 0:02:46]}  O-O {[%clk 0:03:02]} 10. Nb3 {[%clk 0:02:47]}  Bb6 {[%clk 0:03:03]} 11. h3 {[%clk 0:02:47]}  Nf5 {[%clk 0:03:02]} 12. Bf4 {[%clk 0:02:36]}  Qf6 {[%clk 0:03:00]} 13. Bd3 {[%clk 0:02:20]}  h6 {[%clk 0:02:54]} 14. Re1 {[%clk 0:02:14]}  Nh4 {[%clk 0:02:47]} 15. Nxh4 {[%clk 0:01:39]}  Qxf4 {[%clk 0:02:46]} 16. Nf3 {[%clk 0:01:38]}  Bxh3 {[%clk 0:02:12]} 17. gxh3 {[%clk 0:01:27]}  Qg3+ {[%clk 0:02:12]} 18. Kh1 {[%clk 0:01:25]}  Qxh3+ {[%clk 0:02:11]} 19. Kg1 {[%clk 0:01:14]}  Rae8 {[%clk 0:01:53]} 20. Rxe8 {[%clk 0:00:39]}  Rxe8 {[%clk 0:01:52]} 21. Bf1 {[%clk 0:00:19]}  Qg3+ {[%clk 0:01:51]} 22. Kh1 {[%clk 0:00:19]}  Qxf2 {[%clk 0:01:43]} 23. Bg2 {[%clk 0:00:19]}  Re5 {[%clk 0:01:38]} 24. Qf1 {[%clk 0:00:19]}  Rh5+ {[%clk 0:01:38]} 25. Bh3 {[%clk 0:00:17]}  Qg3 {[%clk 0:01:34]} 0-1


[Site "https://www.chess.com"]

[Event "Titled Tuesday Blitz January 17 Early 2023"]
[White "Flores Quillas, Diego Saul Rodri"]
[Black "Rakhmanov, Aleksandr"]
[WhiteFideId "3822508"]
[BlackFideId "4173708"]
[WhiteElo "2359"]
[BlackElo "2632"]
[Result "1/2-1/2"]
[Round "07"]
[TimeControl "180+2"]
[Date "2023.01.17"]
[WhiteClock "0:00:07"]
[BlackClock "0:00:28"]

1. e4 {[%clk 0:02:37]}  c5 {[%clk 0:02:59]} 2. Nf3 {[%clk 0:02:36]}  Nf6 {[%clk 0:02:59]} 3. e5 {[%clk 0:02:34]}  Nd5 {[%clk 0:03:00]} 4. Nc3 {[%clk 0:02:32]}  Nxc3 {[%clk 0:03:00]} 5. dxc3 {[%clk 0:02:33]}  Nc6 {[%clk 0:03:01]} 6. Bf4 {[%clk 0:02:26]}  Qb6 {[%clk 0:03:01]} 7. b3 {[%clk 0:02:18]}  Qc7 {[%clk 0:03:02]} 8. Qd2 {[%clk 0:02:17]}  e6 {[%clk 0:03:02]} 9. h4 {[%clk 0:02:02]}  h6 {[%clk 0:03:03]} 10. h5 {[%clk 0:02:02]}  b6 {[%clk 0:03:03]} 11. O-O-O {[%clk 0:01:57]}  a6 {[%clk 0:03:04]} 12. Bd3 {[%clk 0:01:55]}  b5 {[%clk 0:03:04]} 13. Be4 {[%clk 0:01:55]}  Bb7 {[%clk 0:03:04]} 14. g4 {[%clk 0:01:53]}  c4 {[%clk 0:03:04]} 15. Kb1 {[%clk 0:01:48]}  Ne7 {[%clk 0:03:04]} 16. Qe2 {[%clk 0:01:30]}  Rc8 {[%clk 0:02:47]} 17. g5 {[%clk 0:01:19]}  hxg5 {[%clk 0:02:43]} 18. Nxg5 {[%clk 0:01:19]}  a5 {[%clk 0:02:36]} 19. Qf3 {[%clk 0:01:12]}  Bxe4 {[%clk 0:02:34]} 20. Nxe4 {[%clk 0:01:13]}  Nf5 {[%clk 0:02:19]} 21. h6 {[%clk 0:01:13]}  b4 {[%clk 0:02:08]} 22. hxg7 {[%clk 0:01:01]}  Bxg7 {[%clk 0:02:09]} 23. Nf6+ {[%clk 0:00:57]}  Bxf6 {[%clk 0:01:20]} 24. exf6 {[%clk 0:00:56]}  Rxh1 {[%clk 0:01:20]} 25. Bxc7 {[%clk 0:00:46]}  Rxd1+ {[%clk 0:01:19]} 26. Qxd1 {[%clk 0:00:47]}  Rxc7 {[%clk 0:01:19]} 27. Qg4 {[%clk 0:00:46]}  Kf8 {[%clk 0:01:07]} 28. cxb4 {[%clk 0:00:37]}  axb4 {[%clk 0:01:05]} 29. bxc4 {[%clk 0:00:31]}  d6 {[%clk 0:01:03]} 30. Kb2 {[%clk 0:00:29]}  Ra7 {[%clk 0:00:58]} 31. Qf4 {[%clk 0:00:22]}  Ra5 {[%clk 0:00:48]} 32. Qh2 {[%clk 0:00:16]}  Kg8 {[%clk 0:00:44]} 33. Qg2+ {[%clk 0:00:16]}  Kh7 {[%clk 0:00:43]} 34. Qb7 {[%clk 0:00:15]}  Kg6 {[%clk 0:00:41]} 35. Qxb4 {[%clk 0:00:16]}  Rc5 {[%clk 0:00:40]} 36. a4 {[%clk 0:00:15]}  Nd4 {[%clk 0:00:41]} 37. Qb6 {[%clk 0:00:13]}  Nc6 {[%clk 0:00:32]} 38. Qc7 {[%clk 0:00:10]}  Ne5 {[%clk 0:00:29]} 39. Qd8 {[%clk 0:00:07]}  Nxc4+ {[%clk 0:00:29]} 40. Kb3 {[%clk 0:00:08]}  Na5+ {[%clk 0:00:29]} 41. Kb2 {[%clk 0:00:07]}  Nc4+ {[%clk 0:00:29]} 42. Kb3 {[%clk 0:00:07]}  Na5+ {[%clk 0:00:27]} 43. Kb2 {[%clk 0:00:07]}  Nc4+ {[%clk 0:00:28]} 1/2-1/2


[Site "https://www.chess.com"]

[Event "Titled Tuesday Blitz January 17 Early 2023"]
[White "Cappai, Davide"]
[Black "Cherniaiev, Tykhon"]
[WhiteFideId "813338"]
[BlackFideId "14182360"]
[WhiteElo "2140"]
[BlackElo "2330"]
[Result "0-1"]
[Round "07"]
[TimeControl "180+2"]
[Date "2023.01.17"]
[WhiteClock "0:00:48"]
[BlackClock "0:00:18"]

1. b3 {[%clk 0:02:54]}  e5 {[%clk 0:02:59]} 2. Bb2 {[%clk 0:02:55]}  Nc6 {[%clk 0:02:58]} 3. e3 {[%clk 0:02:55]}  Nf6 {[%clk 0:02:58]} 4. Nf3 {[%clk 0:02:55]}  Bd6 {[%clk 0:02:56]} 5. d4 {[%clk 0:02:55]}  exd4 {[%clk 0:02:56]} 6. Nxd4 {[%clk 0:02:56]}  Nxd4 {[%clk 0:02:52]} 7. Qxd4 {[%clk 0:02:57]}  O-O {[%clk 0:02:53]} 8. c4 {[%clk 0:02:57]}  Re8 {[%clk 0:02:52]} 9. Nc3 {[%clk 0:02:57]}  Be5 {[%clk 0:02:52]} 10. Qd3 {[%clk 0:02:55]}  d5 {[%clk 0:02:36]} 11. O-O-O {[%clk 0:02:51]}  c6 {[%clk 0:02:28]} 12. cxd5 {[%clk 0:02:47]}  cxd5 {[%clk 0:02:27]} 13. Be2 {[%clk 0:02:33]}  Be6 {[%clk 0:02:22]} 14. Kb1 {[%clk 0:02:32]}  Qd7 {[%clk 0:02:10]} 15. Ka1 {[%clk 0:02:20]}  Rac8 {[%clk 0:02:05]} 16. Bf3 {[%clk 0:02:10]}  Red8 {[%clk 0:01:34]} 17. Rc1 {[%clk 0:01:54]}  Bf5 {[%clk 0:01:29]} 18. Qd2 {[%clk 0:01:53]}  d4 {[%clk 0:01:12]} 19. exd4 {[%clk 0:01:53]}  Qxd4 {[%clk 0:01:03]} 20. Qxd4 {[%clk 0:01:52]}  Bxd4 {[%clk 0:01:04]} 21. Bxb7 {[%clk 0:01:41]}  Rb8 {[%clk 0:01:03]} 22. Ba6 {[%clk 0:01:34]}  Bxf2 {[%clk 0:00:57]} 23. Rcf1 {[%clk 0:01:30]}  Rd2 {[%clk 0:00:44]} 24. Na4 {[%clk 0:01:28]}  Ng4 {[%clk 0:00:39]} 25. Bc3 {[%clk 0:01:19]}  Rc2 {[%clk 0:00:32]} 26. Rc1 {[%clk 0:01:05]}  Ne3 {[%clk 0:00:30]} 27. Rxc2 {[%clk 0:01:01]}  Nxc2+ {[%clk 0:00:31]} 28. Kb2 {[%clk 0:01:02]}  Ne3 {[%clk 0:00:32]} 29. h3 {[%clk 0:00:58]}  Nxg2 {[%clk 0:00:30]} 30. Rf1 {[%clk 0:00:52]}  Ne3 {[%clk 0:00:28]} 31. Rxf2 {[%clk 0:00:49]}  Nd1+ {[%clk 0:00:28]} 32. Ka3 {[%clk 0:00:49]}  Nxf2 {[%clk 0:00:29]} 33. Bd4 {[%clk 0:00:50]}  Nxh3 {[%clk 0:00:27]} 34. b4 {[%clk 0:00:49]}  Nf4 {[%clk 0:00:19]} 35. b5 {[%clk 0:00:49]}  Bd3 {[%clk 0:00:16]} 36. Bxa7 {[%clk 0:00:48]}  Ra8 {[%clk 0:00:13]} 37. Be3 {[%clk 0:00:48]}  Nd5 {[%clk 0:00:13]} 38. Nb6 {[%clk 0:00:47]}  Nxb6 {[%clk 0:00:13]} 39. Bxb6 {[%clk 0:00:47]}  Bxb5 {[%clk 0:00:14]} 40. Kb4 {[%clk 0:00:46]}  Bxa6 {[%clk 0:00:14]} 41. a4 {[%clk 0:00:47]}  h5 {[%clk 0:00:14]} 42. a5 {[%clk 0:00:47]}  h4 {[%clk 0:00:15]} 43. Kc5 {[%clk 0:00:48]}  h3 {[%clk 0:00:16]} 44. Bc7 {[%clk 0:00:46]}  Rc8 {[%clk 0:00:16]} 45. Kb6 {[%clk 0:00:47]}  Rxc7 {[%clk 0:00:17]} 46. Kxc7 {[%clk 0:00:48]}  h2 {[%clk 0:00:18]} 47. Kb6 {[%clk 0:00:48]}  h1=Q {[%clk 0:00:18]} 0-1


[Site "https://www.chess.com"]

[Event "Titled Tuesday Blitz January 17 Early 2023"]
[White "Mikhailovsky, Vladimir"]
[Black "Martin Duque, Jesus"]
[WhiteFideId "34105414"]
[BlackFideId "2208954"]
[WhiteElo "2215"]
[BlackElo "2386"]
[Result "1-0"]
[Round "07"]
[TimeControl "180+2"]
[Date "2023.01.17"]
[WhiteClock "0:00:07"]
[BlackClock "0:01:27"]

1. Nf3 {[%clk 0:03:00]}  Nf6 {[%clk 0:02:59]} 2. c4 {[%clk 0:03:00]}  b6 {[%clk 0:03:00]} 3. d4 {[%clk 0:02:40]}  e6 {[%clk 0:03:00]} 4. a3 {[%clk 0:02:39]}  Bb7 {[%clk 0:02:59]} 5. Bf4 {[%clk 0:02:39]}  Bd6 {[%clk 0:02:58]} 6. Bg3 {[%clk 0:02:30]}  O-O {[%clk 0:02:57]} 7. Nc3 {[%clk 0:02:30]}  Ne4 {[%clk 0:02:57]} 8. Qc2 {[%clk 0:02:27]}  f5 {[%clk 0:02:56]} 9. e3 {[%clk 0:02:26]}  Bxg3 {[%clk 0:02:55]} 10. hxg3 {[%clk 0:02:26]}  d6 {[%clk 0:02:55]} 11. Bd3 {[%clk 0:02:25]}  Nxc3 {[%clk 0:02:53]} 12. Qxc3 {[%clk 0:02:24]}  Nd7 {[%clk 0:02:54]} 13. g4 {[%clk 0:02:16]}  g6 {[%clk 0:02:17]} 14. gxf5 {[%clk 0:02:14]}  exf5 {[%clk 0:02:18]} 15. O-O-O {[%clk 0:02:08]}  Qf6 {[%clk 0:02:16]} 16. Rh6 {[%clk 0:02:05]}  Rae8 {[%clk 0:02:15]} 17. Rdh1 {[%clk 0:02:05]}  Re7 {[%clk 0:02:14]} 18. Qd2 {[%clk 0:01:10]}  c5 {[%clk 0:02:10]} 19. d5 {[%clk 0:01:09]}  Ne5 {[%clk 0:02:10]} 20. Nxe5 {[%clk 0:01:06]}  dxe5 {[%clk 0:02:08]} 21. f3 {[%clk 0:00:25]}  e4 {[%clk 0:02:08]} 22. Bc2 {[%clk 0:00:25]}  exf3 {[%clk 0:02:08]} 23. gxf3 {[%clk 0:00:25]}  Rfe8 {[%clk 0:02:08]} 24. e4 {[%clk 0:00:24]}  Ba6 {[%clk 0:01:56]} 25. exf5 {[%clk 0:00:17]}  Re2 {[%clk 0:01:55]} 26. fxg6 {[%clk 0:00:07]}  hxg6 {[%clk 0:01:35]} 27. Rxg6+ {[%clk 0:00:05]}  Qxg6 {[%clk 0:01:33]} 28. Bxg6 {[%clk 0:00:06]}  Rxd2 {[%clk 0:01:30]} 29. Kxd2 {[%clk 0:00:07]}  Rf8 {[%clk 0:01:30]} 30. b3 {[%clk 0:00:05]}  Kg7 {[%clk 0:01:28]} 31. Be4 {[%clk 0:00:04]}  Kf6 {[%clk 0:01:28]} 32. Ke2 {[%clk 0:00:05]}  Ke5 {[%clk 0:01:28]} 33. Ke3 {[%clk 0:00:05]}  b5 {[%clk 0:01:28]} 34. Rh5+ {[%clk 0:00:06]}  Kd6 {[%clk 0:01:28]} 35. Rh6+ {[%clk 0:00:06]}  Ke5 {[%clk 0:01:27]} 36. Rxa6 {[%clk 0:00:07]}  bxc4 {[%clk 0:01:27]} 37. Re6# {[%clk 0:00:07]} 1-0


[Site "https://www.chess.com"]

[Event "Titled Tuesday Blitz January 17 Early 2023"]
[White "Ozates, Tuna"]
[Black "Harshavardhan G B"]
[WhiteFideId "6354521"]
[BlackFideId "25059009"]
[WhiteElo "2251"]
[BlackElo "2408"]
[Result "0-1"]
[Round "07"]
[TimeControl "180+2"]
[Date "2023.01.17"]
[WhiteClock "0:00:16"]
[BlackClock "0:00:37"]

1. e4 {[%clk 0:03:00]}  e5 {[%clk 0:02:58]} 2. Nf3 {[%clk 0:02:57]}  Nc6 {[%clk 0:02:58]} 3. Bc4 {[%clk 0:02:57]}  Nf6 {[%clk 0:02:56]} 4. d3 {[%clk 0:02:57]}  Be7 {[%clk 0:02:55]} 5. O-O {[%clk 0:02:57]}  O-O {[%clk 0:02:54]} 6. Bb3 {[%clk 0:02:57]}  d6 {[%clk 0:02:54]} 7. c3 {[%clk 0:02:58]}  Kh8 {[%clk 0:02:51]} 8. Ng5 {[%clk 0:02:57]}  Qe8 {[%clk 0:02:49]} 9. f4 {[%clk 0:02:58]}  h6 {[%clk 0:02:46]} 10. Nf3 {[%clk 0:02:57]}  exf4 {[%clk 0:02:40]} 11. Bxf4 {[%clk 0:02:56]}  Be6 {[%clk 0:02:37]} 12. Bc2 {[%clk 0:02:53]}  d5 {[%clk 0:02:35]} 13. e5 {[%clk 0:02:53]}  Nd7 {[%clk 0:02:33]} 14. d4 {[%clk 0:02:52]}  Nd8 {[%clk 0:02:26]} 15. Qd3 {[%clk 0:02:49]}  f5 {[%clk 0:02:10]} 16. exf6 {[%clk 0:02:48]}  Nxf6 {[%clk 0:02:09]} 17. Nbd2 {[%clk 0:02:45]}  Bg8 {[%clk 0:02:06]} 18. Ne5 {[%clk 0:02:20]}  Bh7 {[%clk 0:01:58]} 19. Ng6+ {[%clk 0:02:15]}  Bxg6 {[%clk 0:01:53]} 20. Qxg6 {[%clk 0:02:14]}  Ne6 {[%clk 0:01:50]} 21. Be5 {[%clk 0:02:03]}  Qxg6 {[%clk 0:01:48]} 22. Bxg6 {[%clk 0:02:01]}  Ng4 {[%clk 0:01:47]} 23. Rae1 {[%clk 0:01:25]}  Bg5 {[%clk 0:01:29]} 24. Rxf8+ {[%clk 0:01:13]}  Nxf8 {[%clk 0:01:22]} 25. Nf3 {[%clk 0:00:49]}  Nxg6 {[%clk 0:01:19]} 26. Nxg5 {[%clk 0:00:49]}  hxg5 {[%clk 0:01:11]} 27. Bxc7 {[%clk 0:00:48]}  Nf6 {[%clk 0:01:07]} 28. Re6 {[%clk 0:00:37]}  Kg8 {[%clk 0:01:02]} 29. g3 {[%clk 0:00:30]}  Kf7 {[%clk 0:01:00]} 30. Re2 {[%clk 0:00:28]}  g4 {[%clk 0:00:57]} 31. Kg2 {[%clk 0:00:23]}  b5 {[%clk 0:00:56]} 32. h3 {[%clk 0:00:18]}  gxh3+ {[%clk 0:00:55]} 33. Kxh3 {[%clk 0:00:19]}  Rh8+ {[%clk 0:00:54]} 34. Kg2 {[%clk 0:00:19]}  Ne4 {[%clk 0:00:54]} 35. a4 {[%clk 0:00:17]}  bxa4 {[%clk 0:00:51]} 36. c4 {[%clk 0:00:18]}  Rc8 {[%clk 0:00:50]} 37. cxd5 {[%clk 0:00:17]}  Rxc7 {[%clk 0:00:50]} 38. Rxe4 {[%clk 0:00:18]}  Rd7 {[%clk 0:00:49]} 39. d6 {[%clk 0:00:17]}  Rxd6 {[%clk 0:00:49]} 40. d5 {[%clk 0:00:17]}  Rxd5 {[%clk 0:00:42]} 41. Rxa4 {[%clk 0:00:17]}  Rd7 {[%clk 0:00:42]} 42. Ra5 {[%clk 0:00:16]}  Rb7 {[%clk 0:00:40]} 43. Kf3 {[%clk 0:00:16]}  Ne7 {[%clk 0:00:39]} 44. g4 {[%clk 0:00:16]}  Ke6 {[%clk 0:00:38]} 45. Ra6+ {[%clk 0:00:16]}  Ke5 {[%clk 0:00:38]} 46. Rg6 {[%clk 0:00:16]}  Nxg6 {[%clk 0:00:37]} 0-1


[Site "https://www.chess.com"]

[Event "Titled Tuesday Blitz January 17 Early 2023"]
[White "Salimova, Nurgyul"]
[Black "Mamedov, Edgar"]
[WhiteFideId "2915138"]
[BlackFideId "13739980"]
[WhiteElo "2391"]
[BlackElo "2193"]
[Result "1-0"]
[Round "07"]
[TimeControl "180+2"]
[Date "2023.01.17"]
[WhiteClock "0:00:18"]
[BlackClock "0:00:05"]

1. e4 {[%clk 0:03:00]}  c6 {[%clk 0:02:57]} 2. d4 {[%clk 0:02:56]}  d5 {[%clk 0:02:57]} 3. e5 {[%clk 0:02:57]}  c5 {[%clk 0:02:55]} 4. Nf3 {[%clk 0:02:54]}  Nc6 {[%clk 0:02:51]} 5. dxc5 {[%clk 0:02:51]}  e6 {[%clk 0:02:49]} 6. Be3 {[%clk 0:02:49]}  Nh6 {[%clk 0:02:47]} 7. c3 {[%clk 0:02:47]}  Nf5 {[%clk 0:02:45]} 8. Bd4 {[%clk 0:02:46]}  Bd7 {[%clk 0:02:45]} 9. Bd3 {[%clk 0:02:39]}  Nfxd4 {[%clk 0:02:42]} 10. cxd4 {[%clk 0:02:39]}  b6 {[%clk 0:02:42]} 11. cxb6 {[%clk 0:02:26]}  Qxb6 {[%clk 0:02:41]} 12. O-O {[%clk 0:02:22]}  Nxd4 {[%clk 0:02:33]} 13. Nxd4 {[%clk 0:02:19]}  Qxd4 {[%clk 0:02:33]} 14. Nc3 {[%clk 0:02:19]}  Bc5 {[%clk 0:02:01]} 15. Qe2 {[%clk 0:02:14]}  O-O {[%clk 0:01:54]} 16. Rad1 {[%clk 0:02:14]}  Qh4 {[%clk 0:01:51]} 17. Kh1 {[%clk 0:02:10]}  f6 {[%clk 0:01:37]} 18. f4 {[%clk 0:02:07]}  f5 {[%clk 0:01:13]} 19. Rc1 {[%clk 0:01:51]}  Rac8 {[%clk 0:01:10]} 20. Rc2 {[%clk 0:01:48]}  Bd4 {[%clk 0:01:04]} 21. Qf3 {[%clk 0:01:38]}  Bxc3 {[%clk 0:01:02]} 22. bxc3 {[%clk 0:01:36]}  Ba4 {[%clk 0:01:02]} 23. Rcc1 {[%clk 0:01:35]}  Qe7 {[%clk 0:01:01]} 24. c4 {[%clk 0:01:31]}  d4 {[%clk 0:00:58]} 25. Kg1 {[%clk 0:01:23]}  Bc6 {[%clk 0:00:57]} 26. Qf2 {[%clk 0:01:23]}  Rfd8 {[%clk 0:00:54]} 27. Rfd1 {[%clk 0:01:22]}  Qc5 {[%clk 0:00:50]} 28. Bf1 {[%clk 0:01:21]}  Be4 {[%clk 0:00:48]} 29. Bd3 {[%clk 0:01:18]}  Qa3 {[%clk 0:00:32]} 30. Qe2 {[%clk 0:01:15]}  Bxd3 {[%clk 0:00:26]} 31. Qxd3 {[%clk 0:01:15]}  Qxa2 {[%clk 0:00:23]} 32. c5 {[%clk 0:01:15]}  Qd5 {[%clk 0:00:22]} 33. Rc4 {[%clk 0:01:10]}  Rc6 {[%clk 0:00:18]} 34. Qxd4 {[%clk 0:00:58]}  Qxd4+ {[%clk 0:00:18]} 35. Rdxd4 {[%clk 0:00:56]}  Rxd4 {[%clk 0:00:18]} 36. Rxd4 {[%clk 0:00:57]}  Rxc5 {[%clk 0:00:18]} 37. Rd8+ {[%clk 0:00:56]}  Kf7 {[%clk 0:00:17]} 38. Rd7+ {[%clk 0:00:56]}  Kf8 {[%clk 0:00:17]} 39. Rxa7 {[%clk 0:00:57]}  Rc4 {[%clk 0:00:17]} 40. g3 {[%clk 0:00:56]}  Rc2 {[%clk 0:00:17]} 41. h4 {[%clk 0:00:54]}  Re2 {[%clk 0:00:13]} 42. Kf1 {[%clk 0:00:52]}  Rc2 {[%clk 0:00:12]} 43. Rb7 {[%clk 0:00:50]}  Rd2 {[%clk 0:00:12]} 44. Rc7 {[%clk 0:00:49]}  Ra2 {[%clk 0:00:12]} 45. Rb7 {[%clk 0:00:48]}  Rc2 {[%clk 0:00:12]} 46. Ra7 {[%clk 0:00:46]}  Rb2 {[%clk 0:00:11]} 47. Rd7 {[%clk 0:00:43]}  Ra2 {[%clk 0:00:11]} 48. Ke1 {[%clk 0:00:41]}  Rg2 {[%clk 0:00:11]} 49. Rd3 {[%clk 0:00:40]}  Kf7 {[%clk 0:00:11]} 50. Ra3 {[%clk 0:00:38]}  Kg6 {[%clk 0:00:09]} 51. Kf1 {[%clk 0:00:38]}  Rb2 {[%clk 0:00:09]} 52. Ra7 {[%clk 0:00:36]}  Rc2 {[%clk 0:00:03]} 53. Re7 {[%clk 0:00:35]}  Rc6 {[%clk 0:00:03]} 54. Kg2 {[%clk 0:00:35]}  Rc2+ {[%clk 0:00:03]} 55. Kf3 {[%clk 0:00:34]}  Rc3+ {[%clk 0:00:03]} 56. Kf2 {[%clk 0:00:34]}  Rc2+ {[%clk 0:00:02]} 57. Ke1 {[%clk 0:00:32]}  Rc1+ {[%clk 0:00:03]} 58. Kf2 {[%clk 0:00:31]}  Rc6 {[%clk 0:00:04]} 59. Kg2 {[%clk 0:00:30]}  Ra6 {[%clk 0:00:04]} 60. Kh3 {[%clk 0:00:29]}  h5 {[%clk 0:00:04]} 61. Kg2 {[%clk 0:00:25]}  Rc6 {[%clk 0:00:04]} 62. Kf3 {[%clk 0:00:25]}  Rb6 {[%clk 0:00:05]} 63. Ke2 {[%clk 0:00:25]}  Rc6 {[%clk 0:00:05]} 64. Ke3 {[%clk 0:00:25]}  Rb6 {[%clk 0:00:04]} 65. Kd4 {[%clk 0:00:24]}  Rc6 {[%clk 0:00:05]} 66. Kd3 {[%clk 0:00:21]}  Ra6 {[%clk 0:00:05]} 67. Ke3 {[%clk 0:00:18]} 1-0


[Site "https://www.chess.com"]